{"text_format":"1","workbook":"xlsx","n_sheets":12,"sheets":["Instructions","Data Sheet 1","Data Sheet 2","Data Sheet 3","Data Sheet 4","Data Sheet 5","Data Sheet 6","Data Sheet 7","Data Sheet 8","Data Sheet 9","HeaderExport","Version"],"not_rendered":{"charts":0,"images":0,"macros":0,"external_links":0,"defined_names":19,"comments":9,"pivot_tables":0},"unopened":[],"bounds":{"document_bytes":16777216,"sheet_cells":100000,"rows_first":2000,"rows_last":500,"rows_between":2000,"halvings":0,"cell_chars":16384,"cell_head_chars":4096},"cells_cut":0,"cells_raw":0,"read":"whole","date_system":"1900"}

{"sheet":"Instructions","index":0,"n_rows":32,"n_cols":2,"rows_kept":32,"cut":false,"hidden":false,"merged":[[29,0,29,1],[2,0,2,1],[4,0,4,1],[20,0,20,1],[0,0,0,1],[25,0,25,1]]}
["ERT data entry spreadsheet"]
[null,"Version Date: 2/1/16"]
["This workbook is designed for use during the collection of data with manual sampling methods.  It is not appropriate for use with instrumental methods. The workbook is composed of this instruction page,nine data entry sheets, and a header export sheet.  Data entry is not allowed in the header export sheet because there are linkages from the data entry sheet."]
[]
["Each Data Sheet is composed of two sections, the header data section and the point data grid. The header data section has several subsections for entry of  the necessary data applying to a given run. The sections are:"]
[]
[null,"The run identification section which contains data about the facility, the sampling location, method used and the testing operator. The fields labeled Plant, Sampling Location, and Method entered on Data Sheet 1 will be automatically copied into Data Sheet 2 athrough 9 and will not be editable there."]
[]
[null,"The Equipment Identification section has fields to allow entry of the identification numbers for all equipment used during the run."]
[]
[null,"The Filters section has fields to allow entry of the identification numbers for all filters used during the run."]
[]
[null,"In the Calibration section the user should record the calibration values for the equipment used during the sampling."]
[]
[null,"In the Ambient Conditions section the user should record the ambient pressures, temperatures and gas concentrations."]
[]
[null,"Checks performed during the sampling should be recorded in the Checks section either as numeric values or Yes/No values as appropriate."]
[]
[null,"The Impinger Water Weight, Vlc, will be calculated from the entered weights of the impingers and silica gel or it can be entered directly."]
[]
["All of the fields with the light blue background in the point data grid should be filled in for isokinetic methods with each row containing the data from a single point. Where the test method performed does not require the collection of data for a column, that column may be left empty."]
[]
[]
[null,"Importing the ERT template into your spreadsheet and linking the cells"]
[]
["1.      Importing the ERT spreadsheet template into your spreadsheet"]
[]
[null,"1.      Import Data Sheet 1, Data Sheet 2, Data Sheet3,etc. up to Data Sheet 9 and HeaderExport pages into your custom spreadsheet. To do this, open your spreadsheet and the ERT template.  In the ERT template hold the shift key down and click on the tab for Data Sheet 1 and then the tab for HeaderExport. All tabs except Instructions and Version will be highlighted. Right click on the tab and select “move/copy”. Select your custom spreadsheet from the “To book” picklist.  Be sure and check “Create a copy” or these sheets will be moved to your spreadsheet instead of copied.  Select the ok button.  The ERT template sheets will now be sheets in your custom spreadsheet. If you do not need all nine Data Sheets, you may delete these sheets."]
[]
["2.      Linking data cells from your spreadsheet to the imported ERT template pages"]
[]
[null,"2.      Link your data cells with the data cells in the ERT template data sheets.  Link the header data and point data for each run to the appropriate ERT data sheet.  For example link your first run’s data to the cells in Data Sheet 1.  You do not have to link data to the HeaderExport sheet.  This sheet already has the links to the appropriate header data on the data sheet pages."]

{"sheet":"Data Sheet 1","index":1,"n_rows":21,"n_cols":22,"rows_kept":21,"cut":false,"hidden":false,"merged":[[19,18,19,19],[19,20,19,21],[15,1,15,3],[16,1,16,3],[17,13,17,15],[19,1,20,1],[19,2,19,3],[19,4,20,4],[19,5,19,6],[19,8,19,9],[19,10,19,11],[19,12,19,13],[19,14,19,15],[19,16,19,17],[19,7,20,7],[8,1,8,3],[8,6,8,7],[8,9,8,11],[14,1,14,3],[16,10,16,11],[12,1,12,2],[12,3,12,4],[12,6,12,7],[16,12,16,13],[9,1,9,3],[9,6,9,7],[9,9,9,11],[10,1,10,3],[11,1,11,3],[11,6,11,7],[14,6,14,7],[15,6,15,7],[11,13,11,14],[12,13,13,16],[6,1,6,4],[6,9,6,11],[7,1,7,2],[7,6,7,7],[7,9,7,11],[5,1,5,2],[5,3,5,4],[5,6,5,7],[5,9,5,11],[4,1,4,2],[4,3,4,4],[4,6,4,7],[1,2,1,13],[3,1,3,2],[3,3,3,5],[3,12,3,13],[3,14,3,15]]}
[]
[null,"Plant:"]
[]
[null,"Sampling Location:",null,null,null,null,null,"Method:","30B","Checks",null,null,"Pre",null,"Post"]
[null,"Run No.:",null,null,null,"Testing Operator:",null,null,null,null,null,null,"Sample A","Sample B","Sample A","Sample B"]
[null,"Run Date:",null,null,null,"Job Number:",null,null,null,"Vacuum (in Hg):"]
[null,"Equipment Identification",null,null,null,null,"Ambient Conditions",null,null,"Leak Rate (cfm):"]
[null,null,null,null,"Sample A","Sample B","Pbar (in. Hg):",null,null,"Stack Thermocouple (Yes/No):"]
[null,"Dry Gas Meter ID:",null,null,null,null,"Temperature (°F):",null,null,"Sorbent Trap (Yes/No):"]
[null,"Reagent Box ID:",null,null,null,null,"Pg (in. H2O):",null,null,"Probe (Yes/No):"]
[null,"Stack Thermocouple ID: ",null,null,null,null,"Concentrations"]
[null,"Probe / Pitot A ID:",null,null,null,null,"O2 Concentration (%):",null,null,null,null,null,null,"Optional Fields"]
[null,null,null,null,null,null,"CO2 Concentration (%):",null,null,null,null,null,null,"Data required in ¶ 8.5 of EPA Method 5 and presented in Figure 5-3 of Method 5."]
[null,"Calibration",null,null,"Sample A","Sample B","Vlc Components"]
[null,"Meter Box Correction Factor, Y:",null,null,null,null,"Sample A (ml)"]
[null,"Meter Box pressure differential, ΔH@ (in H2O):",null,null,null,null,"Sample B (ml)"]
[null,"Pitot tube coefficient, Cp:",null,null,null,null,null,null,null,null,"Gas Meter Units:",null,"liters"]
[]
[]
[null,"Traverse Point No.","Sampling Time (min)",null,"Clock Time 24 hr","Dry Gas Meter Reading",null,"Delta P","Orfice Pressure Differential (ΔH, in H20)",null,"Stack Temperature (°F)",null,"Probe Temperature (°F)",null,"Trap Temperature (°F)",null,"Dry Gas Meter Temperature °F",null,"Pump Vacuum (in. Hg)",null,"Sample Rate"]
[null,null,"Begin","End",null,"Sample A","Sample B",null,"Sample A","Sample B","Sample A","Sample B","Sample A","Sample B","Sample A","Sample B","Sample A","Sample B","Sample A","Sample B","Sample A","Sample B"]

{"sheet":"Data Sheet 2","index":2,"n_rows":21,"n_cols":22,"rows_kept":21,"cut":false,"hidden":false,"merged":[[19,18,19,19],[19,20,19,21],[15,1,15,3],[16,1,16,3],[17,13,17,15],[19,1,20,1],[19,2,19,3],[19,4,20,4],[19,5,19,6],[19,8,19,9],[19,10,19,11],[19,12,19,13],[19,14,19,15],[19,16,19,17],[19,7,20,7],[8,1,8,3],[8,6,8,7],[8,9,8,11],[14,1,14,3],[16,10,16,11],[12,1,12,2],[12,3,12,4],[12,6,12,7],[16,12,16,13],[9,1,9,3],[9,6,9,7],[9,9,9,11],[10,1,10,3],[11,1,11,3],[11,6,11,7],[14,6,14,7],[15,6,15,7],[11,13,11,14],[12,13,13,16],[6,1,6,4],[6,9,6,11],[7,1,7,2],[7,6,7,7],[7,9,7,11],[5,1,5,2],[5,3,5,4],[5,6,5,7],[5,9,5,11],[4,1,4,2],[4,3,4,4],[4,6,4,7],[1,2,1,13],[3,1,3,2],[3,3,3,5],[3,12,3,13],[3,14,3,15]]}
[]
[null,"Plant:"]
[]
[null,"Sampling Location:",null,null,null,null,null,"Method:","30B","Checks",null,null,"Pre",null,"Post"]
[null,"Run No.:",null,null,null,"Testing Operator:",null,null,null,null,null,null,"Sample A","Sample B","Sample A","Sample B"]
[null,"Run Date:",null,null,null,"Job Number:",null,null,null,"Vacuum (in Hg):"]
[null,"Equipment Identification",null,null,null,null,"Ambient Conditions",null,null,"Leak Rate (cfm):"]
[null,null,null,null,"Sample A","Sample B","Pbar (in. Hg):",null,null,"Stack Thermocouple (Yes/No):"]
[null,"Dry Gas Meter ID:",null,null,null,null,"Temperature (°F):",null,null,"Sorbent Trap (Yes/No):"]
[null,"Reagent Box ID:",null,null,null,null,"Pg (in. H2O):",null,null,"Probe (Yes/No):"]
[null,"Stack Thermocouple ID: ",null,null,null,null,"Concentrations"]
[null,"Probe / Pitot A ID:",null,null,null,null,"O2 Concentration (%):",null,null,null,null,null,null,"Optional Fields"]
[null,null,null,null,null,null,"CO2 Concentration (%):",null,null,null,null,null,null,"Data required in ¶ 8.5 of EPA Method 5 and presented in Figure 5-3 of Method 5."]
[null,"Calibration",null,null,"Sample A","Sample B","Vlc Components"]
[null,"Meter Box Correction Factor, Y:",null,null,null,null,"Sample A (ml)"]
[null,"Meter Box pressure differential, ΔH@ (in H2O):",null,null,null,null,"Sample B (ml)"]
[null,"Pitot tube coefficient, Cp:",null,null,null,null,null,null,null,null,"Gas Meter Units:",null,"liters"]
[]
[]
[null,"Traverse Point No.","Sampling Time (min)",null,"Clock Time 24 hr","Dry Gas Meter Reading",null,"Delta P","Orfice Pressure Differential (ΔH, in H20)",null,"Stack Temperature (°F)",null,"Probe Temperature (°F)",null,"Trap Temperature (°F)",null,"Dry Gas Meter Temperature °F",null,"Pump Vacuum (in. Hg)",null,"Sample Rate"]
[null,null,"Begin","End",null,"Sample A","Sample B",null,"Sample A","Sample B","Sample A","Sample B","Sample A","Sample B","Sample A","Sample B","Sample A","Sample B","Sample A","Sample B","Sample A","Sample B"]

{"sheet":"Data Sheet 3","index":3,"n_rows":21,"n_cols":22,"rows_kept":21,"cut":false,"hidden":false,"merged":[[19,18,19,19],[19,20,19,21],[15,1,15,3],[16,1,16,3],[17,13,17,15],[19,1,20,1],[19,2,19,3],[19,4,20,4],[19,5,19,6],[19,8,19,9],[19,10,19,11],[19,12,19,13],[19,14,19,15],[19,16,19,17],[19,7,20,7],[8,1,8,3],[8,6,8,7],[8,9,8,11],[14,1,14,3],[16,10,16,11],[12,1,12,2],[12,3,12,4],[12,6,12,7],[16,12,16,13],[9,1,9,3],[9,6,9,7],[9,9,9,11],[10,1,10,3],[11,1,11,3],[11,6,11,7],[14,6,14,7],[15,6,15,7],[11,13,11,14],[12,13,13,16],[6,1,6,4],[6,9,6,11],[7,1,7,2],[7,6,7,7],[7,9,7,11],[5,1,5,2],[5,3,5,4],[5,6,5,7],[5,9,5,11],[4,1,4,2],[4,3,4,4],[4,6,4,7],[1,2,1,13],[3,1,3,2],[3,3,3,5],[3,12,3,13],[3,14,3,15]]}
[]
[null,"Plant:"]
[]
[null,"Sampling Location:",null,null,null,null,null,"Method:",null,"Checks",null,null,"Pre",null,"Post"]
[null,"Run No.:",null,null,null,"Testing Operator:",null,null,null,null,null,null,"Sample A","Sample B","Sample A","Sample B"]
[null,"Run Date:",null,null,null,"Job Number:",null,null,null,"Vacuum (in Hg):"]
[null,"Equipment Identification",null,null,null,null,"Ambient Conditions",null,null,"Leak Rate (cfm):"]
[null,null,null,null,"Sample A","Sample B","Pbar (in. Hg):",null,null,"Stack Thermocouple (Yes/No):"]
[null,"Dry Gas Meter ID:",null,null,null,null,"Temperature (°F):",null,null,"Sorbent Trap (Yes/No):"]
[null,"Reagent Box ID:",null,null,null,null,"Pg (in. H2O):",null,null,"Probe (Yes/No):"]
[null,"Stack Thermocouple ID: ",null,null,null,null,"Concentrations"]
[null,"Probe / Pitot A ID:",null,null,null,null,"O2 Concentration (%):",null,null,null,null,null,null,"Optional Fields"]
[null,null,null,null,null,null,"CO2 Concentration (%):",null,null,null,null,null,null,"Data required in ¶ 8.5 of EPA Method 5 and presented in Figure 5-3 of Method 5."]
[null,"Calibration",null,null,"Sample A","Sample B","Vlc Components"]
[null,"Meter Box Correction Factor, Y:",null,null,null,null,"Sample A (ml)"]
[null,"Meter Box pressure differential, ΔH@ (in H2O):",null,null,null,null,"Sample B (ml)"]
[null,"Pitot tube coefficient, Cp:",null,null,null,null,null,null,null,null,"Gas Meter Units:",null,"cubic feet"]
[]
[]
[null,"Traverse Point No.","Sampling Time (min)",null,"Clock Time 24 hr","Dry Gas Meter Reading",null,"Delta P","Orfice Pressure Differential (ΔH, in H20)",null,"Stack Temperature (°F)",null,"Probe Temperature (°F)",null,"Trap Temperature (°F)",null,"Dry Gas Meter Temperature °F",null,"Pump Vacuum (in. Hg)",null,"Sample Rate"]
[null,null,"Begin","End",null,"Sample A","Sample B",null,"Sample A","Sample B","Sample A","Sample B","Sample A","Sample B","Sample A","Sample B","Sample A","Sample B","Sample A","Sample B","Sample A","Sample B"]

{"sheet":"Data Sheet 4","index":4,"n_rows":21,"n_cols":22,"rows_kept":21,"cut":false,"hidden":false,"merged":[[19,18,19,19],[19,20,19,21],[15,1,15,3],[16,1,16,3],[17,13,17,15],[19,1,20,1],[19,2,19,3],[19,4,20,4],[19,5,19,6],[19,8,19,9],[19,10,19,11],[19,12,19,13],[19,14,19,15],[19,16,19,17],[19,7,20,7],[8,1,8,3],[8,6,8,7],[8,9,8,11],[14,1,14,3],[16,10,16,11],[12,1,12,2],[12,3,12,4],[12,6,12,7],[16,12,16,13],[9,1,9,3],[9,6,9,7],[9,9,9,11],[10,1,10,3],[11,1,11,3],[11,6,11,7],[14,6,14,7],[15,6,15,7],[11,13,11,14],[12,13,13,16],[6,1,6,4],[6,9,6,11],[7,1,7,2],[7,6,7,7],[7,9,7,11],[5,1,5,2],[5,3,5,4],[5,6,5,7],[5,9,5,11],[4,1,4,2],[4,3,4,4],[4,6,4,7],[1,2,1,13],[3,1,3,2],[3,3,3,5],[3,12,3,13],[3,14,3,15]]}
[]
[null,"Plant:"]
[]
[null,"Sampling Location:",null,null,null,null,null,"Method:",null,"Checks",null,null,"Pre",null,"Post"]
[null,"Run No.:",null,null,null,"Testing Operator:",null,null,null,null,null,null,"Sample A","Sample B","Sample A","Sample B"]
[null,"Run Date:",null,null,null,"Job Number:",null,null,null,"Vacuum (in Hg):"]
[null,"Equipment Identification",null,null,null,null,"Ambient Conditions",null,null,"Leak Rate (cfm):"]
[null,null,null,null,"Sample A","Sample B","Pbar (in. Hg):",null,null,"Stack Thermocouple (Yes/No):"]
[null,"Dry Gas Meter ID:",null,null,null,null,"Temperature (°F):",null,null,"Sorbent Trap (Yes/No):"]
[null,"Reagent Box ID:",null,null,null,null,"Pg (in. H2O):",null,null,"Probe (Yes/No):"]
[null,"Stack Thermocouple ID: ",null,null,null,null,"Concentrations"]
[null,"Probe / Pitot A ID:",null,null,null,null,"O2 Concentration (%):",null,null,null,null,null,null,"Optional Fields"]
[null,null,null,null,null,null,"CO2 Concentration (%):",null,null,null,null,null,null,"Data required in ¶ 8.5 of EPA Method 5 and presented in Figure 5-3 of Method 5."]
[null,"Calibration",null,null,"Sample A","Sample B","Vlc Components"]
[null,"Meter Box Correction Factor, Y:",null,null,null,null,"Sample A (ml)"]
[null,"Meter Box pressure differential, ΔH@ (in H2O):",null,null,null,null,"Sample B (ml)"]
[null,"Pitot tube coefficient, Cp:",null,null,null,null,null,null,null,null,"Gas Meter Units:",null,"cubic feet"]
[]
[]
[null,"Traverse Point No.","Sampling Time (min)",null,"Clock Time 24 hr","Dry Gas Meter Reading",null,"Delta P","Orfice Pressure Differential (ΔH, in H20)",null,"Stack Temperature (°F)",null,"Probe Temperature (°F)",null,"Trap Temperature (°F)",null,"Dry Gas Meter Temperature °F",null,"Pump Vacuum (in. Hg)",null,"Sample Rate"]
[null,null,"Begin","End",null,"Sample A","Sample B",null,"Sample A","Sample B","Sample A","Sample B","Sample A","Sample B","Sample A","Sample B","Sample A","Sample B","Sample A","Sample B","Sample A","Sample B"]

{"sheet":"Data Sheet 5","index":5,"n_rows":21,"n_cols":22,"rows_kept":21,"cut":false,"hidden":false,"merged":[[19,18,19,19],[19,20,19,21],[15,1,15,3],[16,1,16,3],[17,13,17,15],[19,1,20,1],[19,2,19,3],[19,4,20,4],[19,5,19,6],[19,8,19,9],[19,10,19,11],[19,12,19,13],[19,14,19,15],[19,16,19,17],[19,7,20,7],[8,1,8,3],[8,6,8,7],[8,9,8,11],[14,1,14,3],[16,10,16,11],[12,1,12,2],[12,3,12,4],[12,6,12,7],[16,12,16,13],[9,1,9,3],[9,6,9,7],[9,9,9,11],[10,1,10,3],[11,1,11,3],[11,6,11,7],[14,6,14,7],[15,6,15,7],[11,13,11,14],[12,13,13,16],[6,1,6,4],[6,9,6,11],[7,1,7,2],[7,6,7,7],[7,9,7,11],[5,1,5,2],[5,3,5,4],[5,6,5,7],[5,9,5,11],[4,1,4,2],[4,3,4,4],[4,6,4,7],[1,2,1,13],[3,1,3,2],[3,3,3,5],[3,12,3,13],[3,14,3,15]]}
[]
[null,"Plant:"]
[]
[null,"Sampling Location:",null,null,null,null,null,"Method:",null,"Checks",null,null,"Pre",null,"Post"]
[null,"Run No.:",null,null,null,"Testing Operator:",null,null,null,null,null,null,"Sample A","Sample B","Sample A","Sample B"]
[null,"Run Date:",null,null,null,"Job Number:",null,null,null,"Vacuum (in Hg):"]
[null,"Equipment Identification",null,null,null,null,"Ambient Conditions",null,null,"Leak Rate (cfm):"]
[null,null,null,null,"Sample A","Sample B","Pbar (in. Hg):",null,null,"Stack Thermocouple (Yes/No):"]
[null,"Dry Gas Meter ID:",null,null,null,null,"Temperature (°F):",null,null,"Sorbent Trap (Yes/No):"]
[null,"Reagent Box ID:",null,null,null,null,"Pg (in. H2O):",null,null,"Probe (Yes/No):"]
[null,"Stack Thermocouple ID: ",null,null,null,null,"Concentrations"]
[null,"Probe / Pitot A ID:",null,null,null,null,"O2 Concentration (%):",null,null,null,null,null,null,"Optional Fields"]
[null,null,null,null,null,null,"CO2 Concentration (%):",null,null,null,null,null,null,"Data required in ¶ 8.5 of EPA Method 5 and presented in Figure 5-3 of Method 5."]
[null,"Calibration",null,null,"Sample A","Sample B","Vlc Components"]
[null,"Meter Box Correction Factor, Y:",null,null,null,null,"Sample A (ml)"]
[null,"Meter Box pressure differential, ΔH@ (in H2O):",null,null,null,null,"Sample B (ml)"]
[null,"Pitot tube coefficient, Cp:",null,null,null,null,null,null,null,null,"Gas Meter Units:",null,"cubic feet"]
[]
[]
[null,"Traverse Point No.","Sampling Time (min)",null,"Clock Time 24 hr","Dry Gas Meter Reading",null,"Delta P","Orfice Pressure Differential (ΔH, in H20)",null,"Stack Temperature (°F)",null,"Probe Temperature (°F)",null,"Trap Temperature (°F)",null,"Dry Gas Meter Temperature °F",null,"Pump Vacuum (in. Hg)",null,"Sample Rate"]
[null,null,"Begin","End",null,"Sample A","Sample B",null,"Sample A","Sample B","Sample A","Sample B","Sample A","Sample B","Sample A","Sample B","Sample A","Sample B","Sample A","Sample B","Sample A","Sample B"]

{"sheet":"Data Sheet 6","index":6,"n_rows":21,"n_cols":22,"rows_kept":21,"cut":false,"hidden":false,"merged":[[19,18,19,19],[19,20,19,21],[15,1,15,3],[16,1,16,3],[17,13,17,15],[19,1,20,1],[19,2,19,3],[19,4,20,4],[19,5,19,6],[19,8,19,9],[19,10,19,11],[19,12,19,13],[19,14,19,15],[19,16,19,17],[19,7,20,7],[8,1,8,3],[8,6,8,7],[8,9,8,11],[14,1,14,3],[16,10,16,11],[12,1,12,2],[12,3,12,4],[12,6,12,7],[16,12,16,13],[9,1,9,3],[9,6,9,7],[9,9,9,11],[10,1,10,3],[11,1,11,3],[11,6,11,7],[14,6,14,7],[15,6,15,7],[11,13,11,14],[12,13,13,16],[6,1,6,4],[6,9,6,11],[7,1,7,2],[7,6,7,7],[7,9,7,11],[5,1,5,2],[5,3,5,4],[5,6,5,7],[5,9,5,11],[4,1,4,2],[4,3,4,4],[4,6,4,7],[1,2,1,13],[3,1,3,2],[3,3,3,5],[3,12,3,13],[3,14,3,15]]}
[]
[null,"Plant:"]
[]
[null,"Sampling Location:",null,null,null,null,null,"Method:",null,"Checks",null,null,"Pre",null,"Post"]
[null,"Run No.:",null,null,null,"Testing Operator:",null,null,null,null,null,null,"Sample A","Sample B","Sample A","Sample B"]
[null,"Run Date:",null,null,null,"Job Number:",null,null,null,"Vacuum (in Hg):"]
[null,"Equipment Identification",null,null,null,null,"Ambient Conditions",null,null,"Leak Rate (cfm):"]
[null,null,null,null,"Sample A","Sample B","Pbar (in. Hg):",null,null,"Stack Thermocouple (Yes/No):"]
[null,"Dry Gas Meter ID:",null,null,null,null,"Temperature (°F):",null,null,"Sorbent Trap (Yes/No):"]
[null,"Reagent Box ID:",null,null,null,null,"Pg (in. H2O):",null,null,"Probe (Yes/No):"]
[null,"Stack Thermocouple ID: ",null,null,null,null,"Concentrations"]
[null,"Probe / Pitot A ID:",null,null,null,null,"O2 Concentration (%):",null,null,null,null,null,null,"Optional Fields"]
[null,null,null,null,null,null,"CO2 Concentration (%):",null,null,null,null,null,null,"Data required in ¶ 8.5 of EPA Method 5 and presented in Figure 5-3 of Method 5."]
[null,"Calibration",null,null,"Sample A","Sample B","Vlc Components"]
[null,"Meter Box Correction Factor, Y:",null,null,null,null,"Sample A (ml)"]
[null,"Meter Box pressure differential, ΔH@ (in H2O):",null,null,null,null,"Sample B (ml)"]
[null,"Pitot tube coefficient, Cp:",null,null,null,null,null,null,null,null,"Gas Meter Units:",null,"cubic feet"]
[]
[]
[null,"Traverse Point No.","Sampling Time (min)",null,"Clock Time 24 hr","Dry Gas Meter Reading",null,"Delta P","Orfice Pressure Differential (ΔH, in H20)",null,"Stack Temperature (°F)",null,"Probe Temperature (°F)",null,"Trap Temperature (°F)",null,"Dry Gas Meter Temperature °F",null,"Pump Vacuum (in. Hg)",null,"Sample Rate"]
[null,null,"Begin","End",null,"Sample A","Sample B",null,"Sample A","Sample B","Sample A","Sample B","Sample A","Sample B","Sample A","Sample B","Sample A","Sample B","Sample A","Sample B","Sample A","Sample B"]

{"sheet":"Data Sheet 7","index":7,"n_rows":21,"n_cols":22,"rows_kept":21,"cut":false,"hidden":false,"merged":[[19,18,19,19],[19,20,19,21],[15,1,15,3],[16,1,16,3],[17,13,17,15],[19,1,20,1],[19,2,19,3],[19,4,20,4],[19,5,19,6],[19,8,19,9],[19,10,19,11],[19,12,19,13],[19,14,19,15],[19,16,19,17],[19,7,20,7],[8,1,8,3],[8,6,8,7],[8,9,8,11],[14,1,14,3],[16,10,16,11],[12,1,12,2],[12,3,12,4],[12,6,12,7],[16,12,16,13],[9,1,9,3],[9,6,9,7],[9,9,9,11],[10,1,10,3],[11,1,11,3],[11,6,11,7],[14,6,14,7],[15,6,15,7],[11,13,11,14],[12,13,13,16],[6,1,6,4],[6,9,6,11],[7,1,7,2],[7,6,7,7],[7,9,7,11],[5,1,5,2],[5,3,5,4],[5,6,5,7],[5,9,5,11],[4,1,4,2],[4,3,4,4],[4,6,4,7],[1,2,1,13],[3,1,3,2],[3,3,3,5],[3,12,3,13],[3,14,3,15]]}
[]
[null,"Plant:"]
[]
[null,"Sampling Location:",null,null,null,null,null,"Method:",null,"Checks",null,null,"Pre",null,"Post"]
[null,"Run No.:",null,null,null,"Testing Operator:",null,null,null,null,null,null,"Sample A","Sample B","Sample A","Sample B"]
[null,"Run Date:",null,null,null,"Job Number:",null,null,null,"Vacuum (in Hg):"]
[null,"Equipment Identification",null,null,null,null,"Ambient Conditions",null,null,"Leak Rate (cfm):"]
[null,null,null,null,"Sample A","Sample B","Pbar (in. Hg):",null,null,"Stack Thermocouple (Yes/No):"]
[null,"Dry Gas Meter ID:",null,null,null,null,"Temperature (°F):",null,null,"Sorbent Trap (Yes/No):"]
[null,"Reagent Box ID:",null,null,null,null,"Pg (in. H2O):",null,null,"Probe (Yes/No):"]
[null,"Stack Thermocouple ID: ",null,null,null,null,"Concentrations"]
[null,"Probe / Pitot A ID:",null,null,null,null,"O2 Concentration (%):",null,null,null,null,null,null,"Optional Fields"]
[null,null,null,null,null,null,"CO2 Concentration (%):",null,null,null,null,null,null,"Data required in ¶ 8.5 of EPA Method 5 and presented in Figure 5-3 of Method 5."]
[null,"Calibration",null,null,"Sample A","Sample B","Vlc Components"]
[null,"Meter Box Correction Factor, Y:",null,null,null,null,"Sample A (ml)"]
[null,"Meter Box pressure differential, ΔH@ (in H2O):",null,null,null,null,"Sample B (ml)"]
[null,"Pitot tube coefficient, Cp:",null,null,null,null,null,null,null,null,"Gas Meter Units:",null,"cubic feet"]
[]
[]
[null,"Traverse Point No.","Sampling Time (min)",null,"Clock Time 24 hr","Dry Gas Meter Reading",null,"Delta P","Orfice Pressure Differential (ΔH, in H20)",null,"Stack Temperature (°F)",null,"Probe Temperature (°F)",null,"Trap Temperature (°F)",null,"Dry Gas Meter Temperature °F",null,"Pump Vacuum (in. Hg)",null,"Sample Rate"]
[null,null,"Begin","End",null,"Sample A","Sample B",null,"Sample A","Sample B","Sample A","Sample B","Sample A","Sample B","Sample A","Sample B","Sample A","Sample B","Sample A","Sample B","Sample A","Sample B"]

{"sheet":"Data Sheet 8","index":8,"n_rows":21,"n_cols":22,"rows_kept":21,"cut":false,"hidden":false,"merged":[[19,18,19,19],[19,20,19,21],[15,1,15,3],[16,1,16,3],[17,13,17,15],[19,1,20,1],[19,2,19,3],[19,4,20,4],[19,5,19,6],[19,8,19,9],[19,10,19,11],[19,12,19,13],[19,14,19,15],[19,16,19,17],[19,7,20,7],[8,1,8,3],[8,6,8,7],[8,9,8,11],[14,1,14,3],[16,10,16,11],[12,1,12,2],[12,3,12,4],[12,6,12,7],[16,12,16,13],[9,1,9,3],[9,6,9,7],[9,9,9,11],[10,1,10,3],[11,1,11,3],[11,6,11,7],[14,6,14,7],[15,6,15,7],[11,13,11,14],[12,13,13,16],[6,1,6,4],[6,9,6,11],[7,1,7,2],[7,6,7,7],[7,9,7,11],[5,1,5,2],[5,3,5,4],[5,6,5,7],[5,9,5,11],[4,1,4,2],[4,3,4,4],[4,6,4,7],[1,2,1,13],[3,1,3,2],[3,3,3,5],[3,12,3,13],[3,14,3,15]]}
[]
[null,"Plant:"]
[]
[null,"Sampling Location:",null,null,null,null,null,"Method:",null,"Checks",null,null,"Pre",null,"Post"]
[null,"Run No.:",null,null,null,"Testing Operator:",null,null,null,null,null,null,"Sample A","Sample B","Sample A","Sample B"]
[null,"Run Date:",null,null,null,"Job Number:",null,null,null,"Vacuum (in Hg):"]
[null,"Equipment Identification",null,null,null,null,"Ambient Conditions",null,null,"Leak Rate (cfm):"]
[null,null,null,null,"Sample A","Sample B","Pbar (in. Hg):",null,null,"Stack Thermocouple (Yes/No):"]
[null,"Dry Gas Meter ID:",null,null,null,null,"Temperature (°F):",null,null,"Sorbent Trap (Yes/No):"]
[null,"Reagent Box ID:",null,null,null,null,"Pg (in. H2O):",null,null,"Probe (Yes/No):"]
[null,"Stack Thermocouple ID: ",null,null,null,null,"Concentrations"]
[null,"Probe / Pitot A ID:",null,null,null,null,"O2 Concentration (%):",null,null,null,null,null,null,"Optional Fields"]
[null,null,null,null,null,null,"CO2 Concentration (%):",null,null,null,null,null,null,"Data required in ¶ 8.5 of EPA Method 5 and presented in Figure 5-3 of Method 5."]
[null,"Calibration",null,null,"Sample A","Sample B","Vlc Components"]
[null,"Meter Box Correction Factor, Y:",null,null,null,null,"Sample A (ml)"]
[null,"Meter Box pressure differential, ΔH@ (in H2O):",null,null,null,null,"Sample B (ml)"]
[null,"Pitot tube coefficient, Cp:",null,null,null,null,null,null,null,null,"Gas Meter Units:",null,"cubic feet"]
[]
[]
[null,"Traverse Point No.","Sampling Time (min)",null,"Clock Time 24 hr","Dry Gas Meter Reading",null,"Delta P","Orfice Pressure Differential (ΔH, in H20)",null,"Stack Temperature (°F)",null,"Probe Temperature (°F)",null,"Trap Temperature (°F)",null,"Dry Gas Meter Temperature °F",null,"Pump Vacuum (in. Hg)",null,"Sample Rate"]
[null,null,"Begin","End",null,"Sample A","Sample B",null,"Sample A","Sample B","Sample A","Sample B","Sample A","Sample B","Sample A","Sample B","Sample A","Sample B","Sample A","Sample B","Sample A","Sample B"]

{"sheet":"Data Sheet 9","index":9,"n_rows":21,"n_cols":22,"rows_kept":21,"cut":false,"hidden":false,"merged":[[3,14,3,15],[8,1,8,3],[9,1,9,3],[10,1,10,3],[11,1,11,3],[7,6,7,7],[9,6,9,7],[8,6,8,7],[11,13,11,14],[4,3,4,4],[4,6,4,7],[5,1,5,2],[8,9,8,11],[9,9,9,11],[19,4,20,4],[12,6,12,7],[19,5,19,6],[14,1,14,3],[15,1,15,3],[19,1,20,1],[19,2,19,3],[12,1,12,2],[16,1,16,3],[12,3,12,4],[19,12,19,13],[11,6,11,7],[19,10,19,11],[19,20,19,21],[19,18,19,19],[19,14,19,15],[19,16,19,17],[16,12,16,13],[17,13,17,15],[12,13,13,16],[19,7,20,7],[16,10,16,11],[19,8,19,9],[14,6,14,7],[15,6,15,7],[1,2,1,13],[7,1,7,2],[6,9,6,11],[6,1,6,4],[3,1,3,2],[4,1,4,2],[5,3,5,4],[3,3,3,5],[5,6,5,7],[3,12,3,13],[5,9,5,11],[7,9,7,11]]}
[]
[null,"Plant:"]
[]
[null,"Sampling Location:",null,null,null,null,null,"Method:",null,"Checks",null,null,"Pre",null,"Post"]
[null,"Run No.:",null,null,null,"Testing Operator:",null,null,null,null,null,null,"Sample A","Sample B","Sample A","Sample B"]
[null,"Run Date:",null,null,null,"Job Number:",null,null,null,"Vacuum (in Hg):"]
[null,"Equipment Identification",null,null,null,null,"Ambient Conditions",null,null,"Leak Rate (cfm):"]
[null,null,null,null,"Sample A","Sample B","Pbar (in. Hg):",null,null,"Stack Thermocouple (Yes/No):"]
[null,"Dry Gas Meter ID:",null,null,null,null,"Temperature (°F):",null,null,"Sorbent Trap (Yes/No):"]
[null,"Reagent Box ID:",null,null,null,null,"Pg (in. H2O):",null,null,"Probe (Yes/No):"]
[null,"Stack Thermocouple ID: ",null,null,null,null,"Concentrations"]
[null,"Probe / Pitot A ID:",null,null,null,null,"O2 Concentration (%):",null,null,null,null,null,null,"Optional Fields"]
[null,null,null,null,null,null,"CO2 Concentration (%):",null,null,null,null,null,null,"Data required in ¶ 8.5 of EPA Method 5 and presented in Figure 5-3 of Method 5."]
[null,"Calibration",null,null,"Sample A","Sample B","Vlc Components"]
[null,"Meter Box Correction Factor, Y:",null,null,null,null,"Sample A (ml)"]
[null,"Meter Box pressure differential, ΔH@ (in H2O):",null,null,null,null,"Sample B (ml)"]
[null,"Pitot tube coefficient, Cp:",null,null,null,null,null,null,null,null,"Gas Meter Units:",null,"cubic feet"]
[]
[]
[null,"Traverse Point No.","Sampling Time (min)",null,"Clock Time 24 hr","Dry Gas Meter Reading",null,"Delta P","Orfice Pressure Differential (ΔH, in H20)",null,"Stack Temperature (°F)",null,"Probe Temperature (°F)",null,"Trap Temperature (°F)",null,"Dry Gas Meter Temperature °F",null,"Pump Vacuum (in. Hg)",null,"Sample Rate"]
[null,null,"Begin","End",null,"Sample A","Sample B",null,"Sample A","Sample B","Sample A","Sample B","Sample A","Sample B","Sample A","Sample B","Sample A","Sample B","Sample A","Sample B","Sample A","Sample B"]

{"sheet":"HeaderExport","index":10,"n_rows":10,"n_cols":47,"rows_kept":10,"cut":false,"hidden":false,"merged":[]}
["RunNumber","RunDate","JobNumber","Location","Method","TechnicianName","MeterBoxA","MeterBoxB","ReagBoxA","ReagBoxB","StackTCA","StackTCB","ProbeA","ProbeB","YHDRA","DH@HDRA","YHDRB","DH@HDRB","PbHDR","PgHDR","PercCO2HDR","PercO2HDR","VacCkPreA","VacCkPreB","VacCkPostA","VacCkPostB","LeakRtPreA","LeakRtPreB","LeakRtPostA","LeakRtPostB","StackTCCKPreA","StackTCCKPreB","StackTCCKPostA","StackTCCKPostB","ProbeCkPreA","ProbeCkPreB","ProbeCkPostA","ProbeCkPostB","SorbentTrapCkPreA","SorbentTrapCkPreB","SorbentTrapCkPostA","SorbentTrapCkPostB","CpHDRA","CpHDRB","VlcComA","VlcComB","GasMeterUnits"]
[{"$f":"'Data Sheet 1'!D$5","v":0},{"$f":"'Data Sheet 1'!D$6","v":0},{"$f":"'Data Sheet 1'!G$6","v":0},null,null,{"$f":"IF('Data Sheet 1'!$G$5=\"\",\"\",'Data Sheet 1'!$G$5)","v":""},{"$f":"'Data Sheet 1'!$E$9","v":0},{"$f":"'Data Sheet 1'!$F$9","v":0},{"$f":"'Data Sheet 1'!E$10","v":0},{"$f":"'Data Sheet 1'!F$10","v":0},{"$f":"'Data Sheet 1'!E$11","v":0},{"$f":"'Data Sheet 1'!F$11","v":0},{"$f":"'Data Sheet 1'!E$12","v":0},{"$f":"'Data Sheet 1'!F$12","v":0},{"$f":"'Data Sheet 1'!E$15","v":0},{"$f":"'Data Sheet 1'!E$16","v":0},{"$f":"'Data Sheet 1'!F$15","v":0},{"$f":"'Data Sheet 1'!F$16","v":0},{"$f":"'Data Sheet 1'!I$8","v":0},{"$f":"'Data Sheet 1'!I$10","v":0},{"$f":"'Data Sheet 1'!I$13","v":0},{"$f":"'Data Sheet 1'!I$12","v":0},{"$f":"'Data Sheet 1'!M$6","v":0},{"$f":"'Data Sheet 1'!N$6","v":0},{"$f":"'Data Sheet 1'!O$6","v":0},{"$f":"'Data Sheet 1'!P$6","v":0},{"$f":"'Data Sheet 1'!M$7","v":0},{"$f":"'Data Sheet 1'!N$7","v":0},{"$f":"'Data Sheet 1'!O$7","v":0},{"$f":"'Data Sheet 1'!P$7","v":0},{"$f":"'Data Sheet 1'!M$18","v":0},{"$f":"'Data Sheet 1'!N$8","v":0},{"$f":"'Data Sheet 1'!O$8","v":0},{"$f":"'Data Sheet 1'!P$8","v":0},{"$f":"'Data Sheet 1'!M$10","v":0},{"$f":"'Data Sheet 1'!N$10","v":0},{"$f":"'Data Sheet 1'!O$10","v":0},{"$f":"'Data Sheet 1'!P$10","v":0},{"$f":"'Data Sheet 1'!M$9","v":0},{"$f":"'Data Sheet 1'!N$9","v":0},{"$f":"'Data Sheet 1'!O$9","v":0},{"$f":"'Data Sheet 1'!P$9","v":0},{"$f":"'Data Sheet 1'!E$17","v":0},{"$f":"'Data Sheet 1'!F$17","v":0},{"$f":"'Data Sheet 1'!I$15","v":0},{"$f":"'Data Sheet 1'!I$16","v":0},{"$f":"'Data Sheet 1'!M$17","v":"liters"}]
[{"$f":"'Data Sheet 2'!D$5","v":0},{"$f":"'Data Sheet 2'!D$6","v":0},{"$f":"'Data Sheet 2'!G$6","v":0},null,null,{"$f":"IF('Data Sheet 2'!$G$5=\"\",\"\",'Data Sheet 2'!$G$5)","v":""},{"$f":"'Data Sheet 2'!$E$9","v":0},{"$f":"'Data Sheet 2'!$F$9","v":0},{"$f":"'Data Sheet 2'!E$10","v":0},{"$f":"'Data Sheet 2'!F$10","v":0},{"$f":"'Data Sheet 2'!E$11","v":0},{"$f":"'Data Sheet 2'!F$11","v":0},{"$f":"'Data Sheet 2'!E$12","v":0},{"$f":"'Data Sheet 2'!F$12","v":0},{"$f":"'Data Sheet 2'!E$15","v":0},{"$f":"'Data Sheet 2'!E$16","v":0},{"$f":"'Data Sheet 2'!F$15","v":0},{"$f":"'Data Sheet 2'!F$16","v":0},{"$f":"'Data Sheet 2'!I$8","v":0},{"$f":"'Data Sheet 2'!I$10","v":0},{"$f":"'Data Sheet 2'!I$13","v":0},{"$f":"'Data Sheet 2'!I$12","v":0},{"$f":"'Data Sheet 2'!M$6","v":0},{"$f":"'Data Sheet 2'!N$6","v":0},{"$f":"'Data Sheet 2'!O$6","v":0},{"$f":"'Data Sheet 2'!P$6","v":0},{"$f":"'Data Sheet 2'!M$7","v":0},{"$f":"'Data Sheet 2'!N$7","v":0},{"$f":"'Data Sheet 2'!O$7","v":0},{"$f":"'Data Sheet 2'!P$7","v":0},{"$f":"'Data Sheet 2'!M$18","v":0},{"$f":"'Data Sheet 2'!N$8","v":0},{"$f":"'Data Sheet 2'!O$8","v":0},{"$f":"'Data Sheet 2'!P$8","v":0},{"$f":"'Data Sheet 2'!M$10","v":0},{"$f":"'Data Sheet 2'!N$10","v":0},{"$f":"'Data Sheet 2'!O$10","v":0},{"$f":"'Data Sheet 2'!P$10","v":0},{"$f":"'Data Sheet 2'!M$9","v":0},{"$f":"'Data Sheet 2'!N$9","v":0},{"$f":"'Data Sheet 2'!O$9","v":0},{"$f":"'Data Sheet 2'!P$9","v":0},{"$f":"'Data Sheet 2'!E$17","v":0},{"$f":"'Data Sheet 2'!F$17","v":0},{"$f":"'Data Sheet 2'!I$15","v":0},{"$f":"'Data Sheet 2'!I$16","v":0},{"$f":"'Data Sheet 2'!M$17","v":"liters"}]
[{"$f":"'Data Sheet 3'!D$5","v":0},{"$f":"'Data Sheet 3'!D$6","v":0},{"$f":"'Data Sheet 3'!G$6","v":0},null,null,{"$f":"IF('Data Sheet 3'!$G$5=\"\",\"\",'Data Sheet 3'!$G$5)","v":""},{"$f":"'Data Sheet 3'!$E$9","v":0},{"$f":"'Data Sheet 3'!$F$9","v":0},{"$f":"'Data Sheet 3'!E$10","v":0},{"$f":"'Data Sheet 3'!F$10","v":0},{"$f":"'Data Sheet 3'!E$11","v":0},{"$f":"'Data Sheet 3'!F$11","v":0},{"$f":"'Data Sheet 3'!E$12","v":0},{"$f":"'Data Sheet 3'!F$12","v":0},{"$f":"'Data Sheet 3'!E$15","v":0},{"$f":"'Data Sheet 3'!E$16","v":0},{"$f":"'Data Sheet 3'!F$15","v":0},{"$f":"'Data Sheet 3'!F$16","v":0},{"$f":"'Data Sheet 3'!I$8","v":0},{"$f":"'Data Sheet 3'!I$10","v":0},{"$f":"'Data Sheet 3'!I$13","v":0},{"$f":"'Data Sheet 3'!I$12","v":0},{"$f":"'Data Sheet 3'!M$6","v":0},{"$f":"'Data Sheet 3'!N$6","v":0},{"$f":"'Data Sheet 3'!O$6","v":0},{"$f":"'Data Sheet 3'!P$6","v":0},{"$f":"'Data Sheet 3'!M$7","v":0},{"$f":"'Data Sheet 3'!N$7","v":0},{"$f":"'Data Sheet 3'!O$7","v":0},{"$f":"'Data Sheet 3'!P$7","v":0},{"$f":"'Data Sheet 3'!M$18","v":0},{"$f":"'Data Sheet 3'!N$8","v":0},{"$f":"'Data Sheet 3'!O$8","v":0},{"$f":"'Data Sheet 3'!P$8","v":0},{"$f":"'Data Sheet 3'!M$10","v":0},{"$f":"'Data Sheet 3'!N$10","v":0},{"$f":"'Data Sheet 3'!O$10","v":0},{"$f":"'Data Sheet 3'!P$10","v":0},{"$f":"'Data Sheet 3'!M$9","v":0},{"$f":"'Data Sheet 3'!N$9","v":0},{"$f":"'Data Sheet 3'!O$9","v":0},{"$f":"'Data Sheet 3'!P$9","v":0},{"$f":"'Data Sheet 3'!E$17","v":0},{"$f":"'Data Sheet 3'!F$17","v":0},{"$f":"'Data Sheet 3'!I$15","v":0},{"$f":"'Data Sheet 3'!I$16","v":0},{"$f":"'Data Sheet 3'!M$17","v":"cubic feet"}]
[{"$f":"'Data Sheet 4'!D$5","v":0},{"$f":"'Data Sheet 4'!D$6","v":0},{"$f":"'Data Sheet 4'!G$6","v":0},null,null,{"$f":"IF('Data Sheet 4'!$G$5=\"\",\"\",'Data Sheet 4'!$G$5)","v":""},{"$f":"'Data Sheet 4'!$E$9","v":0},{"$f":"'Data Sheet 4'!$F$9","v":0},{"$f":"'Data Sheet 4'!E$10","v":0},{"$f":"'Data Sheet 4'!F$10","v":0},{"$f":"'Data Sheet 4'!E$11","v":0},{"$f":"'Data Sheet 4'!F$11","v":0},{"$f":"'Data Sheet 4'!E$12","v":0},{"$f":"'Data Sheet 4'!F$12","v":0},{"$f":"'Data Sheet 4'!E$15","v":0},{"$f":"'Data Sheet 4'!E$16","v":0},{"$f":"'Data Sheet 4'!F$15","v":0},{"$f":"'Data Sheet 4'!F$16","v":0},{"$f":"'Data Sheet 4'!I$8","v":0},{"$f":"'Data Sheet 4'!I$10","v":0},{"$f":"'Data Sheet 4'!I$13","v":0},{"$f":"'Data Sheet 4'!I$12","v":0},{"$f":"'Data Sheet 4'!M$6","v":0},{"$f":"'Data Sheet 4'!N$6","v":0},{"$f":"'Data Sheet 4'!O$6","v":0},{"$f":"'Data Sheet 4'!P$6","v":0},{"$f":"'Data Sheet 4'!M$7","v":0},{"$f":"'Data Sheet 4'!N$7","v":0},{"$f":"'Data Sheet 4'!O$7","v":0},{"$f":"'Data Sheet 4'!P$7","v":0},{"$f":"'Data Sheet 4'!M$18","v":0},{"$f":"'Data Sheet 4'!N$8","v":0},{"$f":"'Data Sheet 4'!O$8","v":0},{"$f":"'Data Sheet 4'!P$8","v":0},{"$f":"'Data Sheet 4'!M$10","v":0},{"$f":"'Data Sheet 4'!N$10","v":0},{"$f":"'Data Sheet 4'!O$10","v":0},{"$f":"'Data Sheet 4'!P$10","v":0},{"$f":"'Data Sheet 4'!M$9","v":0},{"$f":"'Data Sheet 4'!N$9","v":0},{"$f":"'Data Sheet 4'!O$9","v":0},{"$f":"'Data Sheet 4'!P$9","v":0},{"$f":"'Data Sheet 4'!E$17","v":0},{"$f":"'Data Sheet 4'!F$17","v":0},{"$f":"'Data Sheet 4'!I$15","v":0},{"$f":"'Data Sheet 4'!I$16","v":0},{"$f":"'Data Sheet 4'!M$17","v":"cubic feet"}]
[{"$f":"'Data Sheet 5'!D$5","v":0},{"$f":"'Data Sheet 5'!D$6","v":0},{"$f":"'Data Sheet 5'!G$6","v":0},null,null,{"$f":"IF('Data Sheet 5'!$G$5=\"\",\"\",'Data Sheet 5'!$G$5)","v":""},{"$f":"'Data Sheet 5'!$E$9","v":0},{"$f":"'Data Sheet 5'!$F$9","v":0},{"$f":"'Data Sheet 5'!E$10","v":0},{"$f":"'Data Sheet 5'!F$10","v":0},{"$f":"'Data Sheet 5'!E$11","v":0},{"$f":"'Data Sheet 5'!F$11","v":0},{"$f":"'Data Sheet 5'!E$12","v":0},{"$f":"'Data Sheet 5'!F$12","v":0},{"$f":"'Data Sheet 5'!E$15","v":0},{"$f":"'Data Sheet 5'!E$16","v":0},{"$f":"'Data Sheet 5'!F$15","v":0},{"$f":"'Data Sheet 5'!F$16","v":0},{"$f":"'Data Sheet 5'!I$8","v":0},{"$f":"'Data Sheet 5'!I$10","v":0},{"$f":"'Data Sheet 5'!I$13","v":0},{"$f":"'Data Sheet 5'!I$12","v":0},{"$f":"'Data Sheet 5'!M$6","v":0},{"$f":"'Data Sheet 5'!N$6","v":0},{"$f":"'Data Sheet 5'!O$6","v":0},{"$f":"'Data Sheet 5'!P$6","v":0},{"$f":"'Data Sheet 5'!M$7","v":0},{"$f":"'Data Sheet 5'!N$7","v":0},{"$f":"'Data Sheet 5'!O$7","v":0},{"$f":"'Data Sheet 5'!P$7","v":0},{"$f":"'Data Sheet 5'!M$18","v":0},{"$f":"'Data Sheet 5'!N$8","v":0},{"$f":"'Data Sheet 5'!O$8","v":0},{"$f":"'Data Sheet 5'!P$8","v":0},{"$f":"'Data Sheet 5'!M$10","v":0},{"$f":"'Data Sheet 5'!N$10","v":0},{"$f":"'Data Sheet 5'!O$10","v":0},{"$f":"'Data Sheet 5'!P$10","v":0},{"$f":"'Data Sheet 5'!M$9","v":0},{"$f":"'Data Sheet 5'!N$9","v":0},{"$f":"'Data Sheet 5'!O$9","v":0},{"$f":"'Data Sheet 5'!P$9","v":0},{"$f":"'Data Sheet 5'!E$17","v":0},{"$f":"'Data Sheet 5'!F$17","v":0},{"$f":"'Data Sheet 5'!I$15","v":0},{"$f":"'Data Sheet 5'!I$16","v":0},{"$f":"'Data Sheet 5'!M$17","v":"cubic feet"}]
[{"$f":"'Data Sheet 6'!D$5","v":0},{"$f":"'Data Sheet 6'!D$6","v":0},{"$f":"'Data Sheet 6'!G$6","v":0},null,null,{"$f":"IF('Data Sheet 6'!$G$5=\"\",\"\",'Data Sheet 6'!$G$5)","v":""},{"$f":"'Data Sheet 6'!$E$9","v":0},{"$f":"'Data Sheet 6'!$F$9","v":0},{"$f":"'Data Sheet 6'!E$10","v":0},{"$f":"'Data Sheet 6'!F$10","v":0},{"$f":"'Data Sheet 6'!E$11","v":0},{"$f":"'Data Sheet 6'!F$11","v":0},{"$f":"'Data Sheet 6'!E$12","v":0},{"$f":"'Data Sheet 6'!F$12","v":0},{"$f":"'Data Sheet 6'!E$15","v":0},{"$f":"'Data Sheet 6'!E$16","v":0},{"$f":"'Data Sheet 6'!F$15","v":0},{"$f":"'Data Sheet 6'!F$16","v":0},{"$f":"'Data Sheet 6'!I$8","v":0},{"$f":"'Data Sheet 6'!I$10","v":0},{"$f":"'Data Sheet 6'!I$13","v":0},{"$f":"'Data Sheet 6'!I$12","v":0},{"$f":"'Data Sheet 6'!M$6","v":0},{"$f":"'Data Sheet 6'!N$6","v":0},{"$f":"'Data Sheet 6'!O$6","v":0},{"$f":"'Data Sheet 6'!P$6","v":0},{"$f":"'Data Sheet 6'!M$7","v":0},{"$f":"'Data Sheet 6'!N$7","v":0},{"$f":"'Data Sheet 6'!O$7","v":0},{"$f":"'Data Sheet 6'!P$7","v":0},{"$f":"'Data Sheet 6'!M$18","v":0},{"$f":"'Data Sheet 6'!N$8","v":0},{"$f":"'Data Sheet 6'!O$8","v":0},{"$f":"'Data Sheet 6'!P$8","v":0},{"$f":"'Data Sheet 6'!M$10","v":0},{"$f":"'Data Sheet 6'!N$10","v":0},{"$f":"'Data Sheet 6'!O$10","v":0},{"$f":"'Data Sheet 6'!P$10","v":0},{"$f":"'Data Sheet 6'!M$9","v":0},{"$f":"'Data Sheet 6'!N$9","v":0},{"$f":"'Data Sheet 6'!O$9","v":0},{"$f":"'Data Sheet 6'!P$9","v":0},{"$f":"'Data Sheet 6'!E$17","v":0},{"$f":"'Data Sheet 6'!F$17","v":0},{"$f":"'Data Sheet 6'!I$15","v":0},{"$f":"'Data Sheet 6'!I$16","v":0},{"$f":"'Data Sheet 6'!M$17","v":"cubic feet"}]
[{"$f":"'Data Sheet 7'!D$5","v":0},{"$f":"'Data Sheet 7'!D$6","v":0},{"$f":"'Data Sheet 7'!G$6","v":0},null,null,{"$f":"IF('Data Sheet 7'!$G$5=\"\",\"\",'Data Sheet 7'!$G$5)","v":""},{"$f":"'Data Sheet 7'!$E$9","v":0},{"$f":"'Data Sheet 7'!$F$9","v":0},{"$f":"'Data Sheet 7'!E$10","v":0},{"$f":"'Data Sheet 7'!F$10","v":0},{"$f":"'Data Sheet 7'!E$11","v":0},{"$f":"'Data Sheet 7'!F$11","v":0},{"$f":"'Data Sheet 7'!E$12","v":0},{"$f":"'Data Sheet 7'!F$12","v":0},{"$f":"'Data Sheet 7'!E$15","v":0},{"$f":"'Data Sheet 7'!E$16","v":0},{"$f":"'Data Sheet 7'!F$15","v":0},{"$f":"'Data Sheet 7'!F$16","v":0},{"$f":"'Data Sheet 7'!I$8","v":0},{"$f":"'Data Sheet 7'!I$10","v":0},{"$f":"'Data Sheet 7'!I$13","v":0},{"$f":"'Data Sheet 7'!I$12","v":0},{"$f":"'Data Sheet 7'!M$6","v":0},{"$f":"'Data Sheet 7'!N$6","v":0},{"$f":"'Data Sheet 7'!O$6","v":0},{"$f":"'Data Sheet 7'!P$6","v":0},{"$f":"'Data Sheet 7'!M$7","v":0},{"$f":"'Data Sheet 7'!N$7","v":0},{"$f":"'Data Sheet 7'!O$7","v":0},{"$f":"'Data Sheet 7'!P$7","v":0},{"$f":"'Data Sheet 7'!M$18","v":0},{"$f":"'Data Sheet 7'!N$8","v":0},{"$f":"'Data Sheet 7'!O$8","v":0},{"$f":"'Data Sheet 7'!P$8","v":0},{"$f":"'Data Sheet 7'!M$10","v":0},{"$f":"'Data Sheet 7'!N$10","v":0},{"$f":"'Data Sheet 7'!O$10","v":0},{"$f":"'Data Sheet 7'!P$10","v":0},{"$f":"'Data Sheet 7'!M$9","v":0},{"$f":"'Data Sheet 7'!N$9","v":0},{"$f":"'Data Sheet 7'!O$9","v":0},{"$f":"'Data Sheet 7'!P$9","v":0},{"$f":"'Data Sheet 7'!E$17","v":0},{"$f":"'Data Sheet 7'!F$17","v":0},{"$f":"'Data Sheet 7'!I$15","v":0},{"$f":"'Data Sheet 7'!I$16","v":0},{"$f":"'Data Sheet 7'!M$17","v":"cubic feet"}]
[{"$f":"'Data Sheet 8'!D$5","v":0},{"$f":"'Data Sheet 8'!D$6","v":0},{"$f":"'Data Sheet 8'!G$6","v":0},null,null,{"$f":"IF('Data Sheet 8'!$G$5=\"\",\"\",'Data Sheet 8'!$G$5)","v":""},{"$f":"'Data Sheet 8'!$E$9","v":0},{"$f":"'Data Sheet 8'!$F$9","v":0},{"$f":"'Data Sheet 8'!E$10","v":0},{"$f":"'Data Sheet 8'!F$10","v":0},{"$f":"'Data Sheet 8'!E$11","v":0},{"$f":"'Data Sheet 8'!F$11","v":0},{"$f":"'Data Sheet 8'!E$12","v":0},{"$f":"'Data Sheet 8'!F$12","v":0},{"$f":"'Data Sheet 8'!E$15","v":0},{"$f":"'Data Sheet 8'!E$16","v":0},{"$f":"'Data Sheet 8'!F$15","v":0},{"$f":"'Data Sheet 8'!F$16","v":0},{"$f":"'Data Sheet 8'!I$8","v":0},{"$f":"'Data Sheet 8'!I$10","v":0},{"$f":"'Data Sheet 8'!I$13","v":0},{"$f":"'Data Sheet 8'!I$12","v":0},{"$f":"'Data Sheet 8'!M$6","v":0},{"$f":"'Data Sheet 8'!N$6","v":0},{"$f":"'Data Sheet 8'!O$6","v":0},{"$f":"'Data Sheet 8'!P$6","v":0},{"$f":"'Data Sheet 8'!M$7","v":0},{"$f":"'Data Sheet 8'!N$7","v":0},{"$f":"'Data Sheet 8'!O$7","v":0},{"$f":"'Data Sheet 8'!P$7","v":0},{"$f":"'Data Sheet 8'!M$18","v":0},{"$f":"'Data Sheet 8'!N$8","v":0},{"$f":"'Data Sheet 8'!O$8","v":0},{"$f":"'Data Sheet 8'!P$8","v":0},{"$f":"'Data Sheet 8'!M$10","v":0},{"$f":"'Data Sheet 8'!N$10","v":0},{"$f":"'Data Sheet 8'!O$10","v":0},{"$f":"'Data Sheet 8'!P$10","v":0},{"$f":"'Data Sheet 8'!M$9","v":0},{"$f":"'Data Sheet 8'!N$9","v":0},{"$f":"'Data Sheet 8'!O$9","v":0},{"$f":"'Data Sheet 8'!P$9","v":0},{"$f":"'Data Sheet 8'!E$17","v":0},{"$f":"'Data Sheet 8'!F$17","v":0},{"$f":"'Data Sheet 8'!I$15","v":0},{"$f":"'Data Sheet 8'!I$16","v":0},{"$f":"'Data Sheet 8'!M$17","v":"cubic feet"}]
[{"$f":"'Data Sheet 9'!D$5","v":0},{"$f":"'Data Sheet 9'!D$6","v":0},{"$f":"'Data Sheet 9'!G$6","v":0},null,null,{"$f":"IF('Data Sheet 9'!$G$5=\"\",\"\",'Data Sheet 9'!$G$5)","v":""},{"$f":"'Data Sheet 9'!$E$9","v":0},{"$f":"'Data Sheet 9'!$F$9","v":0},{"$f":"'Data Sheet 9'!E$10","v":0},{"$f":"'Data Sheet 9'!F$10","v":0},{"$f":"'Data Sheet 9'!E$11","v":0},{"$f":"'Data Sheet 9'!F$11","v":0},{"$f":"'Data Sheet 9'!E$12","v":0},{"$f":"'Data Sheet 9'!F$12","v":0},{"$f":"'Data Sheet 9'!E$15","v":0},{"$f":"'Data Sheet 9'!E$16","v":0},{"$f":"'Data Sheet 9'!F$15","v":0},{"$f":"'Data Sheet 9'!F$16","v":0},{"$f":"'Data Sheet 9'!I$8","v":0},{"$f":"'Data Sheet 9'!I$10","v":0},{"$f":"'Data Sheet 9'!I$13","v":0},{"$f":"'Data Sheet 9'!I$12","v":0},{"$f":"'Data Sheet 9'!M$6","v":0},{"$f":"'Data Sheet 9'!N$6","v":0},{"$f":"'Data Sheet 9'!O$6","v":0},{"$f":"'Data Sheet 9'!P$6","v":0},{"$f":"'Data Sheet 9'!M$7","v":0},{"$f":"'Data Sheet 9'!N$7","v":0},{"$f":"'Data Sheet 9'!O$7","v":0},{"$f":"'Data Sheet 9'!P$7","v":0},{"$f":"'Data Sheet 9'!M$18","v":0},{"$f":"'Data Sheet 9'!N$8","v":0},{"$f":"'Data Sheet 9'!O$8","v":0},{"$f":"'Data Sheet 9'!P$8","v":0},{"$f":"'Data Sheet 9'!M$10","v":0},{"$f":"'Data Sheet 9'!N$10","v":0},{"$f":"'Data Sheet 9'!O$10","v":0},{"$f":"'Data Sheet 9'!P$10","v":0},{"$f":"'Data Sheet 9'!M$9","v":0},{"$f":"'Data Sheet 9'!N$9","v":0},{"$f":"'Data Sheet 9'!O$9","v":0},{"$f":"'Data Sheet 9'!P$9","v":0},{"$f":"'Data Sheet 9'!E$17","v":0},{"$f":"'Data Sheet 9'!F$17","v":0},{"$f":"'Data Sheet 9'!I$15","v":0},{"$f":"'Data Sheet 9'!I$16","v":0},{"$f":"'Data Sheet 9'!M$17","v":"cubic feet"}]

{"sheet":"Version","index":11,"n_rows":4,"n_cols":3,"rows_kept":4,"cut":false,"hidden":false,"merged":[]}
[]
["Version Date:",null,"Comments"]
["2014-04-24","-","Initial 30B version"]
["2014-09-12",null,"added VlcComA, VlcComB to header data, DeltaP to point data"]